bitfinex/quotes_SOLUSD_20251125
["timestamp","ask_amount","ask_price","bid_price","bid_amount"]
[1764097082536,7.99133175,136.59,136.56,0.67]
[1764097083134,7.32087138,136.6,136.56,12.38809726]
[1764097083334,7.32087138,136.6,136.56,5.06543455]
[1764097083335,0.67,136.59,136.56,5.06543455]
[1764097083538,0.67,136.59,136.56,0.67]
[1764097083840,0.67,136.59,136.54,7.32360175]
[1764097084013,5.06543455,136.59,136.54,0.67]
[1764097084517,0.67,136.58,136.54,0.67]
[1764097084713,3.24,136.57,136.54,0.67]
[1764097084933,3.24,136.57,136.54,5.06543455]
[1764097085132,3.24,136.57,136.55,0.67]
[1764097086129,3.24,136.57,136.55,7.99317885]
[1764097089644,0.67,136.6,136.56,0.67]
[1764097089838,3.24,136.59,136.56,0.67]
[1764097090037,3.91,136.59,136.56,0.67]
[1764097091746,3.24,136.58,136.56,26.29929496]
[1764097092038,3.24,136.58,136.57,4.39543455]
[1764097092238,3.24,136.58,136.57,5.06543455]
[1764097093735,3.24,136.58,136.57,12.38768687]
[1764097096646,3.24,136.59,136.57,30.69331768]
[1764097096842,3.24,136.59,136.58,5.06543455]
[1764097097031,3.24,136.59,136.58,0.67]
[1764097097728,3.24,136.59,136.57,26.29788313]
[1764097098024,3.24,136.59,136.58,0.67]
[1764097098649,3.24,136.59,136.58,7.99171621]
[1764097099539,3.24,136.59,136.58,7.32171621]
[1764097099742,8.30543455,136.59,136.54,0.67]
[1764097099955,0.67,136.58,136.54,4.39543455]
[1764097100152,0.67,136.58,136.55,0.67]
[1764097100772,0.67,136.58,136.56,7.32278851]
[1764097101744,0.67,136.58,136.54,7.32370492]
[1764097101962,3.24,136.57,136.55,5.06543455]
[1764097102665,3.24,136.57,136.56,12.38822306]
[1764097109369,3.96,136.57,136.54,16.308864]
[1764097109574,0.72,136.56,136.52,0.72]
[1764097109870,0.72,136.56,136.53,4.39543455]
[1764097110069,3.24,136.57,136.55,4.39543455]
[1764097110271,3.24,136.57,136.56,4.39543455]
[1764097110647,0.72,136.59,136.56,5.11543455]
[1764097110863,0.72,136.61,136.57,0.72]
[1764097111059,3.24,136.6,136.54,0.72]
[1764097111467,3.96,136.6,136.54,0.72]
[1764097111874,0.72,136.6,136.58,4.39543455]
[1764097112071,3.24,136.59,136.58,11.71665359]
[1764097112797,3.24,136.59,136.58,7.32121904]
[1764097116475,3.24,136.59,136.57,11.7174597]
[1764097116663,3.96,136.59,136.57,11.7174597]
[1764097116868,3.96,136.59,136.57,7.32202515]
[1764097117764,3.24,136.59,136.57,7.32202515]
[1764097118685,3.24,136.59,136.57,11.7174597]
[1764097118977,3.24,136.59,136.57,12.4374597]
[1764097119658,0.72,136.6,136.57,12.4374597]
[1764097119859,3.24,136.58,136.57,12.4374597]
[1764097120779,3.24,136.58,136.57,30.74309051]
[1764097120961,3.24,136.58,136.57,12.4374597]
[1764097126475,3.96,136.58,136.56,7.32251926]
[1764097126792,3.24,136.58,136.56,12.43795381]
[1764097127184,3.24,136.58,136.57,0.72]
[1764097127488,3.24,136.58,136.57,4.39543455]
[1764097128084,3.24,136.58,136.57,7.32225232]
[1764097128869,3.24,136.58,136.55,25.63067113]
[1764097129062,3.24,136.58,136.56,3.5342558]
[1764097130207,3.24,136.58,136.57,7.32225232]
[1764097130380,3.24,136.58,136.57,10.13650812]
[1764097131097,3.24,136.58,136.57,10.85650812]
[1764097132189,0.72,136.61,136.57,10.85650812]
[1764097132397,3.24,136.6,136.58,2.8142558]
[1764097132797,3.24,136.6,136.59,0.72]
[1764097132997,3.24,136.6,136.59,3.5342558]
[1764097134595,3.24,136.6,136.59,10.85543597]
[1764097136582,3.24,136.6,136.58,10.13596]
[1764097136782,3.24,136.6,136.59,2.8142558]
[1764097137079,3.24,136.6,136.58,10.79596]
[1764097137293,3.24,136.6,136.59,0.66]
[1764097138109,3.24,136.6,136.58,10.13596]
[1764097138801,3.24,136.6,136.58,10.79596]
[1764097139710,3.24,136.6,136.58,0.66]
[1764097139888,3.24,136.6,136.58,7.98163608]
[1764097140284,19.8431198,136.65,136.59,3.5042558]
[1764097140608,3.96,136.64,136.61,10.1343549]
[1764097140998,3.96,136.64,136.61,7.3200991]
[1764097141190,3.96,136.64,136.6,10.82471081]
[1764097141506,0.72,136.63,136.6,10.82471081]
[1764097142295,3.96,136.64,136.6,10.82471081]
[1764097142713,11.27850463,136.64,136.6,10.82471081]
[1764097142900,3.96,136.64,136.6,10.82471081]
[1764097143105,3.96,136.64,136.61,3.5042558]
[1764097143409,3.96,136.64,136.6,7.32045501]
[1764097143602,3.24,136.64,136.61,0.69]
[1764097143802,0.72,136.66,136.62,2.8142558]
[1764097143995,3.24,136.65,136.64,2.8142558]
[1764097144510,3.24,136.65,136.64,10.13275697]
[1764097144808,3.24,136.65,136.64,7.31850117]
[1764097145407,3.24,136.65,136.63,10.82322238]
[1764097145585,3.24,136.65,136.63,3.5042558]
[1764097146988,3.24,136.65,136.63,2.8142558]
[1764097147193,3.5342558,136.64,136.59,7.32109527]
[1764097147392,2.8142558,136.62,136.58,7.32149853]
[1764097147692,6.0542558,136.61,136.57,0.69]
[1764097147901,2.8142558,136.6,136.55,3.5042558]
[1764097148108,3.5342558,136.6,136.55,19.8131198]
[1764097148317,0.72,136.59,136.56,0.69]
[1764097149015,0.72,136.59,136.55,26.44644458]
[1764097149198,3.5342558,136.59,136.55,8.01332478]
[1764097149598,3.5342558,136.59,136.55,10.13758058]
[1764097149599,0.72,136.59,136.55,10.13758058]
[1764097149802,0.72,136.59,136.56,0.69]
[1764097150002,0.72,136.59,136.55,10.82758058]
[1764097150911,0.72,136.59,136.55,10.13758058]
[1764097151214,0.72,136.59,136.56,0.69]
[1764097151813,0.72,136.59,136.55,0.69]
[1764097152019,10.85549611,136.59,136.54,10.13809805]
[1764097152215,0.72,136.61,136.55,3.5042558]
[1764097152420,13.37411814,136.62,136.55,3.5042558]
[1764097152421,6.7742558,136.6,136.56,2.8142558]
[1764097152711,6.7742558,136.6,136.55,3.5042558]
[1764097152917,0.72,136.59,136.55,3.5042558]
[1764097153227,0.72,136.59,136.55,2.8142558]
[1764097153418,0.72,136.59,136.56,0.69]
[1764097153615,10.85557593,136.59,136.54,28.44775089]
[1764097153919,10.85557593,136.59,136.55,0.69]
[1764097154104,0.72,136.58,136.55,0.69]
[1764097154503,0.72,136.58,136.54,29.13775089]
[1764097154695,0.72,136.58,136.54,26.32349509]
[1764097154890,3.5342558,136.58,136.54,29.13775089]
[1764097155111,0.72,136.58,136.54,29.13775089]
[1764097156515,0.72,136.58,136.54,28.44775089]
[1764097156716,3.24,136.57,136.56,7.32278851]
[1764097157502,6.7742558,136.57,136.52,38.12463955]
[1764097157705,6.7742558,136.57,136.52,16.998864]
[1764097157706,3.5342558,136.56,136.52,16.998864]
[1764097158715,0.72,136.55,136.49,2.8142558]
[1764097159019,14.09660346,136.55,136.51,3.5042558]
[1764097159221,3.5342558,136.55,136.51,0.69]
[1764097159816,0.72,136.55,136.51,0.69]
[1764097160126,3.5342558,136.55,136.51,0.69]
[1764097162415,3.24,136.54,136.51,0.69]
[1764097162806,3.24,136.54,136.52,7.32493407]
[1764097163521,6.0542558,136.54,136.52,7.32493407]
[1764097164106,2.8142558,136.53,136.51,7.32523686]
[1764097164308,2.8142558,136.52,136.48,80.11691739]
[1764097164624,6.0542558,136.51,136.48,0.66]
[1764097164818,6.0542558,136.51,136.48,7.98687333]
[1764097164819,6.7642558,136.51,136.48,7.98687333]
[1764097165212,6.0542558,136.51,136.48,7.32687333]
[1764097165410,3.5242558,136.5,136.47,7.32746761]
[1764097166322,10.56555448,136.51,136.46,18.97958666]
[1764097166323,10.56555448,136.51,136.46,7.32810655]
[1764097166515,3.5242558,136.5,136.46,7.98810655]
[1764097167428,3.5242558,136.5,136.46,29.12274927]
[1764097168720,7.32390331,136.52,136.49,2.8142558]
[1764097168911,3.24,136.51,136.5,10.14026312]
[1764097169128,3.24,136.51,136.5,7.32600732]
[1764097169309,3.24,136.51,136.5,7.98600732]
[1764097170007,3.24,136.51,136.5,10.80026312]
[1764097170412,10.56552778,136.55,136.5,10.80026312]
[1764097170603,0.71,136.55,136.52,2.8142558]
[1764097170847,3.24,136.54,136.53,2.8142558]
[1764097171137,3.5242558,136.58,136.53,2.8142558]
[1764097171138,0.71,136.57,136.54,7.32386113]
[1764097171321,3.24,136.56,136.54,7.32386113]
[1764097172317,3.5242558,136.57,136.54,7.32386113]
[1764097172525,11.27552778,136.59,136.55,0.66]
[1764097172834,3.24,136.58,136.55,3.4742558]
[1764097174639,3.24,136.58,136.56,7.32278851]
[1764097175545,3.24,136.58,136.56,7.98278851]
[1764097175843,3.24,136.58,136.56,7.32278851]
[1764097178650,0.71,136.57,136.55,7.32308807]
[1764097178947,6.7642558,136.58,136.55,7.98308807]
[1764097179129,6.0542558,136.58,136.55,7.32308807]
[1764097179331,0.71,136.57,136.55,7.32308807]
[1764097179526,3.5242558,136.57,136.53,7.32439756]
[1764097179726,3.5242558,136.57,136.53,10.79865336]
[1764097179928,2.8142558,136.57,136.53,10.79865336]
[1764097180142,3.5242558,136.57,136.53,29.10964728]
[1764097180450,0.71,136.56,136.53,29.10964728]
[1764097180829,3.24,136.55,136.53,29.10964728]
[1764097181149,3.24,136.55,136.53,26.29539148]
[1764097181441,3.24,136.55,136.51,25.63798295]
[1764097181643,3.95,136.55,136.51,26.29798295]
[1764097181832,3.95,136.55,136.51,29.11223875]
[1764097182241,3.95,136.55,136.51,28.45223875]
[1764097182440,3.95,136.55,136.52,0.66]
[1764097183044,3.5242558,136.54,136.5,10.14005241]
[1764097183247,2.8142558,136.53,136.5,7.98579661]
[1764097183553,0.71,136.53,136.5,7.32579661]
[1764097183737,0.71,136.52,136.5,7.32579661]
[1764097184047,3.24,136.51,136.5,7.32579661]
[1764097185339,3.24,136.51,136.5,7.98579661]
[1764097186964,7.32415531,136.54,136.5,7.98579661]
[1764097187127,3.24,136.53,136.52,2.8142558]
[1764097187331,3.24,136.53,136.51,0.66]
[1764097187560,3.24,136.53,136.5,25.64081492]
[1764097187561,3.95,136.53,136.5,7.32579661]
[1764097187856,0.71,136.52,136.5,7.32579661]
[1764097188229,3.5242558,136.52,136.49,7.32645686]
[1764097188435,2.8142558,136.51,136.48,7.32695234]
[1764097188628,3.5242558,136.51,136.48,7.32695234]
[1764097188830,3.24,136.5,136.48,7.32695234]
[1764097189063,3.24,136.5,136.48,7.98695234]
[1764097190873,5.11330089,136.53,136.49,0.66]
[1764097191063,3.95,136.52,136.49,0.66]
[1764097192063,3.95,136.52,136.48,30.70795545]
[1764097192761,3.95,136.52,136.49,0.66]
[1764097193743,8.35330089,136.52,136.49,0.66]
[1764097194144,3.95,136.52,136.49,7.98605041]
[1764097194668,3.95,136.52,136.49,7.32605041]
[1764097195666,8.35330089,136.52,136.49,7.32605041]
[1764097195968,0.69,136.51,136.49,7.32605041]
[1764097196665,8.33330089,136.52,136.49,7.32605041]
[1764097196853,3.93,136.52,136.49,0.66]
[1764097197263,0.69,136.51,136.48,25.64478311]
[1764097197463,0.69,136.51,136.48,30.708084]
[1764097197650,3.24,136.52,136.48,30.048084]
[1764097197849,3.93,136.52,136.48,30.708084]
[1764097198750,7.32351943,136.55,136.5,4.40330089]
[1764097199056,3.24,136.54,136.49,0.66]
[1764097199256,8.33330089,136.54,136.49,5.06330089]
[1764097199844,0.69,136.53,136.49,5.06330089]
[1764097200044,0.69,136.53,136.5,0.69]
[1764097200243,3.24,136.54,136.5,0.69]
[1764097200444,8.33330089,136.54,136.5,5.09330089]
[1764097200883,0.69,136.53,136.49,7.32611859]
[1764097201058,5.09330089,136.53,136.49,8.01611859]
[1764097201379,0.69,136.53,136.48,11.73016263]
[1764097201541,4.40330089,136.5,136.45,8.01869182]
[1764097201747,4.40330089,136.48,136.44,8.11904521]
[1764097201949,4.40330089,136.47,136.44,7.42904521]
[1764097202150,5.09330089,136.48,136.44,8.11904521]
[1764097202446,4.40330089,136.46,136.44,0.1]
[1764097202652,3.24,136.45,136.44,0.1]
[1764097203348,3.24,136.45,136.44,0.79]
[1764097203671,3.24,136.45,136.44,5.19330089]
[1764097204170,28.72768194,136.51,136.44,0.79]
[1764097204379,8.33330089,136.5,136.46,4.40330089]
[1764097204576,16.998864,136.52,136.48,4.40330089]
[1764097204887,3.24,136.51,136.5,7.32600732]
[1764097205085,3.24,136.51,136.5,11.72930821]
[1764097205377,3.24,136.51,136.5,7.32600732]
[1764097206271,12.41667887,136.55,136.5,12.41930821]
[1764097206474,10.23166968,136.64,136.53,4.40330089]
[1764097206769,11.72489156,136.59,136.54,11.72694455]
[1764097206980,3.24,136.58,136.54,11.72694455]
[1764097207282,3.24,136.57,136.56,4.40330089]
[1764097207488,5.09330089,136.62,136.56,4.40330089]
[1764097207657,3.24,136.61,136.57,5.09330089]
[1764097207855,0.69,136.62,136.58,4.40330089]
[1764097208173,3.24,136.61,136.6,4.40330089]
[1764097208390,3.24,136.61,136.59,0.69]
[1764097208557,3.24,136.61,136.58,5.09330089]
[1764097208757,17.6,136.7,136.6,4.40330089]
[1764097209076,8.33330089,136.68,136.64,4.40330089]
[1764097209446,0.69,136.67,136.64,4.40330089]
[1764097209969,0.69,136.67,136.62,0.69]
[1764097209970,5.09330089,136.67,136.63,4.40330089]
[1764097210277,5.09330089,136.67,136.62,5.09330089]
[1764097210487,5.09330089,136.67,136.63,4.40330089]
[1764097210784,17.6,136.7,136.64,11.65559865]
[1764097210986,17.6,136.7,136.66,11.65559865]
[1764097211175,17.6,136.7,136.65,7.3179656]
[1764097211176,3.24,136.69,136.67,11.65559865]
[1764097211356,15.58559865,136.69,136.65,19.66356425]
[1764097211557,15.58559865,136.69,136.65,8.0079656]
[1764097211759,15.58559865,136.69,136.65,19.66356425]
[1764097212061,15.58559865,136.69,136.65,8.0079656]
[1764097212275,3.93,136.69,136.65,19.66356425]
[1764097212476,17.6,136.7,136.68,11.65559865]
[1764097212685,0.69,136.74,136.69,11.65559865]
[1764097212899,11.65559865,136.72,136.68,18.97166686]
[1764097213195,31.89446265,136.73,136.69,0.69]
[1764097213393,11.65559865,136.71,136.66,19.6624976]
[1764097213580,11.65559865,136.69,136.66,8.00689895]
[1764097213779,35.6727282,136.73,136.66,8.00689895]
[1764097213780,3.24,136.68,136.66,8.00689895]
[1764097214175,14.89559865,136.68,136.64,7.31798262]
[1764097214373,11.65559865,136.67,136.64,0.69]
[1764097214971,15.58559865,136.68,136.64,8.00806193]
[1764097215607,11.65559865,136.65,136.61,7.31957388]
[1764097215771,14.89559865,136.64,136.61,7.31957388]
[1764097216274,11.65559865,136.62,136.6,7.32058268]
[1764097216482,11.65559865,136.63,136.6,8.01058268]
[1764097217003,3.24,136.62,136.6,7.32058268]
[1764097217681,3.24,136.62,136.6,8.01058268]
[1764097218508,3.24,136.62,136.61,0.69]
[1764097218693,3.24,136.62,136.61,12.34559865]
[1764097218881,3.24,136.62,136.6,25.62219322]
[1764097219203,3.24,136.62,136.59,8.01099182]
[1764097220313,12.34559865,136.61,136.57,8.01185368]
[1764097220493,12.34559865,136.61,136.58,0.69]
[1764097220494,11.65559865,136.61,136.58,0.69]
[1764097220685,11.65559865,136.61,136.57,7.32185368]
[1764097220686,12.34559865,136.61,136.57,8.01185368]
[1764097220993,11.65559865,136.6,136.57,8.01185368]
[1764097221200,12.34559865,136.6,136.57,7.32185368]
[1764097221509,11.65559865,136.59,136.57,7.32185368]
[1764097221675,3.24,136.58,136.57,7.32185368]
[1764097222506,3.24,136.58,136.57,8.01185368]
[1764097222802,3.24,136.58,136.56,7.32264134]
[1764097223190,3.24,136.58,136.56,8.01264134]
[1764097225706,3.24,136.58,136.56,7.98264134]
[1764097226579,12.36559865,136.57,136.53,35.27959137]
[1764097226779,11.65559865,136.57,136.54,7.98366979]
[1764097227380,15.60559865,136.58,136.54,7.98366979]
[1764097229809,0.71,136.57,136.5,26.29972753]
[1764097230012,11.65559865,136.55,136.51,0.66]
[1764097230311,11.65559865,136.55,136.51,12.31559865]
[1764097230312,3.24,136.54,136.51,12.31559865]
[1764097230680,3.24,136.54,136.52,0.66]
[1764097230884,3.24,136.54,136.52,12.31559865]
[1764097231091,3.24,136.54,136.53,7.32439756]
[1764097231385,3.24,136.54,136.53,7.98439756]
[1764097231580,0.71,136.57,136.53,26.29539148]
[1764097231788,3.24,136.56,136.53,37.95099013]
[1764097232410,3.24,136.56,136.53,26.29539148]
[1764097232819,7.63990012,136.56,136.53,7.98439756]
[1764097233896,4.39990012,136.55,136.53,7.32439756]
[1764097234311,4.39990012,136.55,136.52,7.32472628]
[1764097234493,5.10990012,136.55,136.52,7.32472628]
[1764097235414,5.10990012,136.55,136.52,7.98472628]
[1764097235940,0.71,136.54,136.5,7.32587303]
[1764097236096,4.39990012,136.53,136.5,7.98587303]
[1764097236296,3.24,136.52,136.5,7.98587303]
[1764097236813,4.39990012,136.54,136.51,0.66]
[1764097237117,3.24,136.53,136.51,5.05990012]
[1764097237500,3.24,136.53,136.52,0.66]
[1764097237698,3.24,136.53,136.52,7.98493407]
[1764097238597,3.24,136.53,136.52,7.32493407]
[1764097238920,8.34990012,136.53,136.5,7.98581671]
[1764097239109,8.34990012,136.53,136.5,7.32581671]
[1764097239315,4.39990012,136.51,136.46,18.97963578]
[1764097239498,4.39990012,136.51,136.47,7.3273899]
[1764097239697,4.39990012,136.5,136.47,7.9873899]
[1764097240006,3.24,136.49,136.48,0.66]
[1764097240526,3.24,136.49,136.48,12.33894665]
[1764097240527,2.52,136.49,136.48,12.33894665]
[1764097240721,3.24,136.51,136.48,21.14889157]
[1764097241021,3.24,136.51,136.5,11.67894665]
[1764097241428,12.38894665,136.58,136.5,29.38041138]
[1764097241603,36.59570808,136.63,136.52,11.67894665]
[1764097241604,11.67894665,136.56,136.52,11.67894665]
[1764097241799,11.67894665,136.56,136.53,7.32439756]
[1764097242018,3.24,136.55,136.53,7.32439756]
[1764097245531,3.24,136.55,136.53,19.00334421]
[1764097245737,3.24,136.55,136.53,19.66334421]
[1764097246320,12.38894665,136.58,136.53,37.31433813]
[1764097246538,3.24,136.57,136.54,12.33894665]
[1764097247546,3.95,136.57,136.54,12.33894665]
[1764097247719,3.24,136.57,136.54,12.33894665]
[1764097248749,14.91894665,136.57,136.54,7.32370171]
[1764097248929,3.24,136.57,136.54,26.29335455]
[1764097249117,3.24,136.57,136.54,37.9723012]
[1764097249316,3.24,136.57,136.55,11.67894665]
[1764097250343,0.71,136.58,136.56,7.32278851]
[1764097250755,3.24,136.57,136.56,7.32278851]
[1764097251244,3.24,136.57,136.56,14.68548722]
[1764097251546,3.24,136.57,136.56,32.99245851]
[1764097251749,6.70269871,136.63,136.56,32.99245851]
[1764097251931,3.24,136.62,136.58,6.70269871]
[1764097252132,3.95,136.62,136.58,6.70269871]
[1764097252333,3.95,136.62,136.59,7.32118017]
[1764097252652,0.71,136.61,136.59,7.32118017]
[1764097253028,3.24,136.62,136.59,14.02387888]
[1764097253231,3.92,136.62,136.59,14.02387888]
[1764097253545,3.92,136.62,136.59,33.01682931]
[1764097253741,6.70269871,136.64,136.6,0.69]
[1764097253952,3.24,136.63,136.6,6.70269871]
[1764097254138,3.92,136.63,136.59,32.32682931]
[1764097254338,3.92,136.63,136.59,33.01682931]
[1764097255152,3.92,136.63,136.6,0.69]
[1764097255350,0.68,136.62,136.59,8.01118017]
[1764097255662,3.24,136.63,136.6,7.39269871]
[1764097257155,3.24,136.63,136.61,7.32010833]
[1764097257352,3.92,136.63,136.61,7.32010833]
[1764097258255,3.24,136.63,136.61,7.32010833]
[1764097259256,3.93,136.63,136.61,7.32010833]
[1764097259559,0.69,136.62,136.61,7.32010833]
[1764097260060,3.24,136.63,136.61,7.32010833]
[1764097260261,3.93,136.63,136.61,7.32010833]
[1764097260445,3.93,136.63,136.6,25.62159704]
[1764097260641,7.39269871,136.62,136.56,16.308864]
[1764097260856,6.70269871,136.59,136.55,6.70269871]
[1764097261051,3.24,136.58,136.55,6.70269871]
[1764097261360,3.24,136.58,136.56,7.32269457]
[1764097261547,3.93,136.58,136.56,7.32269457]
[1764097261734,3.93,136.58,136.55,7.99308959]
[1764097262134,3.24,136.58,136.56,0.67]
[1764097262334,3.24,136.58,136.55,33.00410027]
[1764097262537,3.24,136.58,136.55,29.11623498]
[1764097264160,0.69,136.57,136.54,7.32362125]
[1764097264539,0.69,136.57,136.54,26.30327409]
[1764097265276,0.69,136.57,136.54,29.11810751]
[1764097265639,6.05483342,136.58,136.54,29.11810751]
[1764097265840,6.74483342,136.58,136.54,29.11810751]
[1764097266144,0.69,136.57,136.54,25.63327409]
[1764097266857,3.50483342,136.57,136.54,7.32362125]
[1764097267245,0.69,136.56,136.54,7.32362125]
[1764097269141,3.50483342,136.56,136.54,7.32362125]
[1764097269339,0.69,136.56,136.54,7.32362125]
[1764097269739,3.24,136.55,136.54,28.44810751]
[1764097269959,3.24,136.55,136.54,25.63327409]
[1764097271767,0.69,136.59,136.54,29.11810751]
[1764097271957,3.93,136.58,136.54,29.11810751]
[1764097272262,3.24,136.58,136.57,2.81483342]
[1764097272765,2.81483342,136.6,136.56,2.81483342]
[1764097273060,3.24,136.59,136.55,3.48483342]
[1764097273242,3.24,136.59,136.56,2.81483342]
[1764097273443,3.24,136.59,136.56,3.48483342]
[1764097273858,3.24,136.59,136.57,7.32225232]
[1764097274467,3.93,136.59,136.57,7.32225232]
[1764097275370,3.24,136.59,136.57,7.32225232]
[1764097278872,3.24,136.59,136.57,25.62788313]
[1764097279052,0.69,136.63,136.59,7.32118017]
[1764097279259,3.93,136.62,136.59,28.43896402]
[1764097279571,3.24,136.61,136.6,2.81483342]
[1764097281372,3.24,136.61,136.6,10.13547763]
[1764097282250,3.24,136.61,136.6,7.32064421]
[1764097283076,3.24,136.61,136.59,7.32091343]
[1764097283272,3.24,136.61,136.59,10.13574685]
[1764097283460,3.24,136.61,136.59,10.83574685]
[1764097285151,3.24,136.61,136.59,29.13869728]
[1764097285359,3.91,136.61,136.59,25.62386386]
[1764097285555,3.24,136.61,136.59,25.62386386]
[1764097287278,3.24,136.61,136.59,28.43869728]
[1764097287470,3.24,136.61,136.59,29.13869728]
[1764097289785,3.24,136.61,136.59,26.32386386]
[1764097290455,3.91,136.61,136.59,25.62386386]
[1764097291001,3.24,136.61,136.59,25.62386386]
[1764097291990,0.67,136.64,136.6,3.51483342]
[1764097292158,3.91,136.64,136.62,2.81483342]
[1764097292560,3.91,136.64,136.61,3.51483342]
[1764097293187,3.24,136.64,136.61,3.51483342]
[1764097293390,3.24,136.64,136.63,2.81483342]
[1764097293690,3.24,136.64,136.62,2.81483342]
[1764097293868,0.67,136.66,136.63,7.31903681]
[1764097294074,3.24,136.65,136.63,7.31903681]
[1764097294269,3.24,136.65,136.63,25.61662884]
[1764097294490,3.91,136.65,136.63,25.61662884]
[1764097294686,3.24,136.65,136.63,25.61662884]
[1764097294888,3.24,136.65,136.63,26.31662884]
[1764097295188,3.24,136.66,136.63,25.61662884]
[1764097295492,0.67,136.65,136.63,25.61662884]
[1764097296064,0.67,136.65,136.63,18.29759203]
[1764097296278,0.67,136.65,136.62,7.31957253]
[1764097296592,0.67,136.65,136.62,26.31850387]
[1764097297379,3.24,136.66,136.63,3.51483342]
[1764097297778,3.24,136.66,136.64,0.7]
[1764097298273,3.24,136.66,136.64,7.31850117]
[1764097298685,3.48483342,136.65,136.61,18.29977089]
[1764097298891,2.81483342,136.63,136.6,7.32064421]
[1764097299077,6.05483342,136.62,136.6,7.32064421]
[1764097299476,6.72483342,136.62,136.6,7.32064421]
[1764097300071,3.91,136.62,136.59,25.62339051]
[1764097300677,3.91,136.62,136.59,26.32339051]
[1764097301084,0.67,136.61,136.59,7.32118017]
[1764097301294,3.48483342,136.61,136.58,7.32169358]
[1764097301775,0.67,136.61,136.58,7.32169358]
[1764097302097,0.67,136.61,136.58,25.6259841]
[1764097302294,3.48483342,136.61,136.58,26.3259841]
[1764097302510,2.81483342,136.61,136.58,25.6259841]
[1764097302671,0.67,136.6,136.58,25.6259841]
[1764097303698,3.48483342,136.6,136.57,7.32225232]
[1764097304079,0.67,136.59,136.57,7.32225232]
[1764097304286,3.24,136.58,136.57,7.32225232]
[1764097310499,3.24,136.59,136.57,7.32225232]
[1764097311197,3.24,136.59,136.57,10.13708574]
[1764097311380,3.24,136.59,136.58,2.81483342]
[1764097311586,3.24,136.59,136.57,10.13708574]
[1764097311788,2.81483342,136.62,136.57,28.44271655]
[1764097312102,3.24,136.6,136.57,90.24271655]
[1764097312600,3.24,136.6,136.57,91.8246975]
[1764097313691,3.24,136.6,136.57,87.42788313]
[1764097314591,3.24,136.6,136.57,91.8246975]
[1764097314798,3.24,136.6,136.58,4.39681437]
[1764097314981,3.24,136.6,136.57,92.5446975]
[1764097317906,3.24,136.6,136.57,88.14788313]
[1764097318991,3.24,136.6,136.57,87.42788313]
[1764097319392,7.63681437,136.6,136.57,69.12225232]
[1764097319588,3.24,136.6,136.57,69.12225232]
[1764097320399,3.24,136.6,136.57,87.42788313]
[1764097320806,3.24,136.6,136.57,61.8]
[1764097321027,4.39681437,136.58,136.54,61.8]
[1764097321324,16.308864,136.6,136.52,66.86681437]
[1764097321620,4.39681437,136.55,136.51,23.63414541]
[1764097321803,7.63681437,136.55,136.51,23.63414541]
[1764097321997,7.63681437,136.55,136.52,0.67]
[1764097322414,7.63681437,136.55,136.52,5.06681437]
[1764097322415,3.24,136.55,136.52,5.06681437]
[1764097323519,3.24,136.55,136.53,7.32439756]
[1764097323707,3.24,136.55,136.53,10.988262]
[1764097325110,3.24,136.55,136.53,6.59144763]
[1764097326115,3.24,136.56,136.53,24.90244155]
[1764097326316,7.63681437,136.56,136.53,6.59144763]
[1764097327118,3.24,136.56,136.53,6.59144763]
[1764097327615,0.72,136.59,136.53,91.09925592]
[1764097327919,3.24,136.58,136.54,5.06681437]
[1764097329040,3.24,136.58,136.53,86.70244155]
[1764097329237,4.39681437,136.54,136.48,16.13696308]
[1764097329531,7.63681437,136.54,136.49,7.99608952]
[1764097329708,4.39681437,136.53,136.49,30.70926406]
[1764097329912,4.39681437,136.53,136.49,30.03926406]